bitfinex/quotes_BTCUSD_20220204
["timestamp","ask_amount","ask_price","bid_price","bid_amount"]
[1643986175240,0.58567978,37948.0,37932.0,0.04500782]
[1643986175241,0.8939039,37945.0,37932.0,0.04500782]
[1643986175440,0.04999999,37943.0,37934.0,0.06591]
[1643986175641,0.04999999,37943.0,37936.0,0.065907]
[1643986175886,0.04999999,37943.0,37935.0,0.17077287]
[1643986175887,0.04999999,37937.0,37935.0,0.05]
[1643986176177,0.04999999,37937.0,37930.0,0.347715]
[1643986176376,0.33282546,37940.0,37935.0,0.131821]
[1643986176578,0.04999999,37936.0,37935.0,0.131821]
[1643986176980,0.346848,37937.0,37935.0,0.131821]
[1643986177382,0.39684799,37937.0,37935.0,0.131821]
[1643986177581,0.04999999,37937.0,37935.0,0.131821]
[1643986177783,0.39684799,37937.0,37935.0,0.131821]
[1643986178284,0.49684799,37937.0,37934.0,0.065928]
[1643986178482,0.04999999,37935.0,37934.0,0.065928]
[1643986178682,0.32516228,37941.0,37934.0,0.065928]
[1643986178883,0.04999999,37937.0,37935.0,0.131831]
[1643986179182,0.04999999,37937.0,37934.0,0.065928]
[1643986179382,0.30147188,37940.0,37934.0,0.065928]
[1643986179622,0.04999999,37935.0,37934.0,0.065928]
[1643986180221,0.04999999,37935.0,37934.0,0.197765]
[1643986181623,0.04888068,37935.0,37934.0,0.197765]
[1643986181822,0.15606907,37927.0,37923.0,0.60822473]
[1643986182025,0.15606907,37927.0,37922.0,3.0]
[1643986182026,0.36642663,37927.0,37922.0,3.0]
[1643986182227,0.36642663,37927.0,37922.0,3.00024566]
[1643986182228,0.04999999,37925.0,37922.0,3.00024566]
[1643986182425,0.04999999,37925.0,37922.0,3.0]
[1643986182625,0.04999999,37923.0,37922.0,3.0]
[1643986182831,0.04999999,37923.0,37922.0,3.00024566]
[1643986183025,0.04999999,37923.0,37922.0,3.0]
[1643986184472,0.13293162,37923.0,37922.0,3.0]
[1643986184678,0.51156967,37923.0,37922.0,3.0]
[1643986184875,0.40165019,37923.0,37922.0,2.24616891]
[1643986185074,0.40165019,37923.0,37916.0,0.00024566]
[1643986185075,1.15,37922.0,37916.0,0.00024566]
[1643986185272,1.15,37922.0,37915.0,0.02207315]
[1643986185273,0.04999999,37917.0,37915.0,0.02207315]
[1643986185474,0.2351746,37916.0,37915.0,0.02182749]
[1643986185673,1.0787213,37916.0,37915.0,0.02182749]
[1643986185872,1.1787213,37916.0,37915.0,0.02182749]
[1643986186775,1.1787213,37916.0,37913.0,0.00024566]
[1643986186776,1.396848,37914.0,37913.0,0.00024566]
[1643986186976,0.6146017,37914.0,37911.0,0.00024566]
[1643986187226,0.6146017,37914.0,37904.0,0.181935]
[1643986187227,0.346851,37913.0,37905.0,0.00024566]
[1643986187427,0.346851,37913.0,37904.0,0.181935]
[1643986187428,0.04999999,37906.0,37904.0,0.181935]
[1643986187732,0.04999999,37910.0,37905.0,0.62273748]
[1643986187926,0.04999999,37910.0,37905.0,0.065967]
[1643986188125,0.04999999,37910.0,37905.0,0.06621266]
[1643986188327,0.04999999,37910.0,37908.0,0.346851]
[1643986188634,0.04999999,37910.0,37906.0,0.00024566]
[1643986188635,0.21724266,37910.0,37906.0,0.00024566]
[1643986188928,0.04999999,37910.0,37906.0,0.09813576]
[1643986189127,0.04999999,37914.0,37906.0,0.14813576]
[1643986189327,0.04999999,37914.0,37906.0,0.14838142]
[1643986189629,0.11597099,37914.0,37906.0,0.00024566]
[1643986189830,0.16908329,37913.0,37905.0,0.11621266]
[1643986190027,0.04999999,37912.0,37905.0,0.06621266]
[1643986190230,0.04999999,37910.0,37906.0,0.065971]
[1643986190428,0.04999999,37910.0,37906.0,0.06621666]
[1643986190628,0.04999999,37910.0,37906.0,0.065971]
[1643986190876,0.04999999,37909.0,37905.0,0.16621266]
[1643986191177,0.2828881,37910.0,37905.0,0.115967]
[1643986191371,0.04999999,37907.0,37905.0,0.11621266]
[1643986191571,0.04999999,37907.0,37905.0,0.115967]
[1643986191971,0.04999999,37908.0,37905.0,0.115967]
[1643986192171,0.04999999,37908.0,37905.0,0.11621266]
[1643986192373,0.20559598,37913.0,37905.0,0.115967]
[1643986192573,0.04999999,37912.0,37905.0,0.11621266]
[1643986192973,0.04999999,37912.0,37905.0,0.41319002]
[1643986193573,0.04999999,37912.0,37905.0,0.11621266]
[1643986194475,0.16335172,37911.0,37905.0,0.06621266]
[1643986194721,0.26851804,37908.0,37905.0,0.00024566]
[1643986194922,0.26851804,37908.0,37902.0,0.00024566]
[1643986194923,0.04999999,37906.0,37902.0,0.00024566]
[1643986195126,0.04999999,37903.0,37901.0,0.141963]
[1643986195323,0.21775128,37902.0,37901.0,0.01]
[1643986195521,0.15108028,37902.0,37901.0,0.01]
[1643986195721,0.68487156,37902.0,37901.0,0.01]
[1643986195926,1.21519294,37902.0,37901.0,0.01]
[1643986196324,1.21519294,37902.0,37899.0,0.00024566]
[1643986196325,0.55,37901.0,37899.0,0.00024566]
[1643986196524,0.55,37901.0,37898.0,0.02121765]
[1643986196525,0.61460227,37900.0,37898.0,0.02121765]
[1643986196723,0.61460227,37900.0,37895.0,0.00024566]
[1643986196724,0.39685099,37900.0,37895.0,0.00024566]
[1643986196925,0.04999999,37896.0,37892.0,0.00024566]
[1643986197124,0.04999999,37896.0,37891.0,0.01024566]
[1643986197323,0.1,37900.0,37891.0,0.01024566]
[1643986197324,0.04999999,37892.0,37891.0,0.01024566]
[1643986197524,0.04999999,37892.0,37891.0,0.01]
[1643986198027,0.57349446,37892.0,37891.0,0.01]
[1643986198477,0.67349446,37892.0,37891.0,0.01]
[1643986199576,0.49685099,37892.0,37891.0,0.01]
[1643986200378,0.59693189,37892.0,37891.0,0.01]
[1643986200782,0.67135896,37892.0,37891.0,0.01]
[1643986201181,0.39685099,37892.0,37891.0,0.01]
[1643986201384,0.39685099,37892.0,37891.0,0.04742243]
[1643986201385,0.04999999,37892.0,37891.0,0.04742243]
[1643986201580,0.04999999,37892.0,37891.0,0.01]
[1643986201784,0.04999999,37898.0,37891.0,0.1047677]
[1643986201982,0.346851,37897.0,37893.0,0.065994]
[1643986202230,0.346851,37895.0,37893.0,0.065994]
[1643986202528,0.24256502,37896.0,37893.0,0.10411051]
[1643986202830,0.04999999,37898.0,37893.0,0.10411051]
[1643986203036,2.91390573,37915.0,37894.0,0.04197256]
[1643986203037,0.04999999,37902.0,37894.0,0.04197256]
[1643986203234,0.0217192,37908.0,37898.0,0.131954]
[1643986203235,0.04999999,37906.0,37898.0,0.131954]
[1643986203430,0.0217192,37908.0,37900.0,0.346851]
[1643986203631,0.04999999,37902.0,37901.0,0.346851]
[1643986203830,0.04999999,37902.0,37899.0,0.00024566]
[1643986204032,0.04999999,37902.0,37898.0,0.181954]
[1643986204331,0.04999999,37906.0,37898.0,0.24792677]
[1643986204529,0.04999999,37906.0,37899.0,0.0461533]
[1643986204735,0.04999999,37913.0,37901.0,0.04195624]
[1643986204932,0.2469,37922.0,37899.0,0.00024566]
[1643986204933,0.04999999,37915.0,37907.0,0.065955]
[1643986205131,0.01822581,37911.0,37909.0,0.03756348]
[1643986205332,0.01822581,37911.0,37910.0,0.42220343]
[1643986205732,0.01822581,37911.0,37910.0,0.47220343]
[1643986206175,0.01672332,37911.0,37910.0,0.47220343]
[1643986206576,0.01672332,37911.0,37910.0,0.46712294]
[1643986206774,0.21875128,37919.0,37911.0,0.06594715]
[1643986206975,0.001,37919.0,37913.0,0.346851]
[1643986207376,0.001,37919.0,37916.0,0.0823044]
[1643986207580,0.001,37919.0,37916.0,0.66213164]
[1643986207981,0.001,37919.0,37917.0,0.346816]
[1643986208175,0.02251855,37923.0,37917.0,0.346816]
[1643986208176,0.02251855,37923.0,37918.0,0.55]
[1643986208376,0.04999999,37927.0,37920.0,0.346783]
[1643986208581,0.0022,37931.0,37921.0,0.26583326]
[1643986208778,0.0022,37931.0,37922.0,0.610397]
[1643986208975,0.0222109,37931.0,37923.0,0.0485]
[1643986209179,0.0222109,37931.0,37924.0,0.346738]
[1643986209376,0.0222109,37931.0,37930.0,0.61504761]
[1643986209624,0.0222109,37931.0,37930.0,0.33450101]
[1643986209625,1.09e-05,37931.0,37930.0,0.33450101]
[1643986209824,1.09e-05,37931.0,37930.0,0.68117701]
[1643986210032,0.05001089,37931.0,37930.0,0.416676]
[1643986210323,0.05001089,37931.0,37930.0,0.07]
[1643986210324,0.24933244,37931.0,37930.0,0.07]
[1643986210522,1.09e-05,37931.0,37930.0,0.02]
[1643986210723,1.09e-05,37931.0,37930.0,0.416675]
[1643986212924,1.09e-05,37931.0,37930.0,0.63210744]
[1643986213124,1.09e-05,37931.0,37930.0,0.98210744]
[1643986213383,0.0011,37933.0,37930.0,0.96210744]
[1643986213575,0.002,37936.0,37931.0,0.131827]
[1643986213777,0.002,37936.0,37933.0,0.065914]
[1643986214076,0.002,37936.0,37934.0,0.346633]
[1643986214282,0.002,37936.0,37934.0,0.396633]
[1643986214476,0.05099999,37935.0,37934.0,0.396633]
[1643986215079,0.001,37938.0,37934.0,0.61292703]
[1643986215279,0.001,37938.0,37935.0,0.346621]
[1643986215479,0.02278036,37947.0,37937.0,0.79999999]
[1643986215679,0.02242501,37947.0,37940.0,0.04999999]
[1643986215878,0.02242501,37947.0,37941.0,0.10162141]
[1643986216276,0.02242501,37947.0,37941.0,0.15162141]
[1643986216478,0.02242501,37947.0,37945.0,0.06589562]
[1643986216779,0.02242501,37947.0,37944.0,0.13179123]
[1643986216780,0.00074465,37947.0,37944.0,0.04679636]
[1643986216981,0.00074465,37947.0,37944.0,0.17858536]
[1643986217235,0.01667625,37949.0,37946.0,0.09999999]
[1643986217236,0.0111,37949.0,37946.0,0.09999999]
[1643986217437,0.0022,37953.0,37949.0,0.915874]
[1643986217636,0.0032,37963.0,37952.0,0.09087327]
[1643986217832,0.19273737,37962.0,37953.0,0.03512507]
[1643986218032,0.19273737,37962.0,37949.0,0.16437399]
[1643986218033,0.002,37958.0,37957.0,0.01888794]
[1643986218233,0.348851,37958.0,37957.0,0.01888794]
[1643986218435,0.56368766,37958.0,37957.0,0.01888794]
[1643986218635,0.01856522,37956.0,37944.0,0.11439851]
[1643986218834,0.1486442,37948.0,37944.0,0.0485]
[1643986219033,0.28777287,37954.0,37944.0,0.0485]
[1643986219034,0.21483666,37953.0,37944.0,0.0485]
[1643986219334,0.346851,37952.0,37948.0,0.10364292]
[1643986219537,0.32514896,37953.0,37948.0,0.10364292]
[1643986219734,0.1,37952.0,37948.0,0.10364292]
[1643986219935,0.19922167,37951.0,37948.0,0.10364292]
[1643986220138,0.346851,37955.0,37948.0,0.15364291]
[1643986220337,0.00557656,37957.0,37953.0,0.04999999]
[1643986220536,0.00557656,37957.0,37954.0,0.10208757]
[1643986220980,0.346851,37956.0,37954.0,0.10208757]
[1643986221378,0.00557656,37957.0,37954.0,0.10208757]
[1643986221777,0.00557656,37957.0,37954.0,0.15208757]
[1643986221978,0.00557656,37957.0,37956.0,0.08493018]
[1643986222183,0.00557656,37957.0,37954.0,0.15208757]
[1643986222379,0.01,37959.0,37954.0,0.19351427]
[1643986222581,0.01,37959.0,37954.0,0.15208757]
[1643986222778,0.01,37959.0,37954.0,0.39256957]
[1643986222979,0.01,37959.0,37957.0,0.01888794]
[1643986223577,0.01,37959.0,37957.0,0.05336621]
[1643986223778,0.01,37959.0,37958.0,0.04528359]
[1643986223978,0.001,37961.0,37958.0,0.04528359]
[1643986224181,0.001,37961.0,37959.0,0.06587]
[1643986224380,0.001,37961.0,37959.0,0.11586936]
[1643986224381,0.346851,37960.0,37959.0,0.11586936]
[1643986224629,0.001,37961.0,37959.0,0.11586936]
[1643986224934,0.347851,37961.0,37954.0,0.4484064]
[1643986225129,0.04999999,37960.0,37958.0,0.10402603]
[1643986225335,0.346851,37959.0,37949.0,0.09739111]
[1643986225533,0.346851,37959.0,37946.0,0.09101812]
[1643986225534,0.04999999,37952.0,37946.0,0.09101812]
[1643986225834,0.22726068,37958.0,37945.0,0.15088192]
[1643986225835,0.04999999,37947.0,37945.0,0.01908592]
[1643986226031,0.00557646,37954.0,37945.0,0.12302788]
[1643986226032,0.28310399,37954.0,37945.0,0.12302788]
[1643986226234,0.04999999,37946.0,37945.0,0.12370239]
[1643986226436,0.04999999,37946.0,37945.0,0.01908592]
[1643986226833,0.04999999,37946.0,37940.0,0.0439679]
[1643986227038,0.09827988,37948.0,37938.0,0.05]
[1643986227039,0.28250157,37941.0,37938.0,0.05]
[1643986227338,0.28250157,37941.0,37934.0,0.0199597]
[1643986227339,0.43721415,37938.0,37934.0,0.0199597]
[1643986227539,0.04999999,37935.0,37934.0,0.0199597]
[1643986228137,0.92048129,37935.0,37934.0,0.0199597]
[1643986228388,1.36733229,37935.0,37934.0,0.0199597]
[1643986228584,0.6689698,37935.0,37934.0,0.0199597]
[1643986228784,0.49685099,37935.0,37934.0,0.0199597]
[1643986228982,0.14999999,37935.0,37929.0,0.03802818]
[1643986229182,0.14999999,37935.0,37927.0,0.02638]
[1643986229183,0.346851,37934.0,37927.0,0.02138]
[1643986229382,0.346851,37934.0,37930.0,0.04535799]
[1643986229383,0.446851,37934.0,37930.0,0.04535799]
[1643986229582,0.1,37934.0,37932.0,0.03321683]
[1643986229784,0.1,37934.0,37928.0,0.131862]
[1643986229785,0.39685099,37933.0,37928.0,0.131862]
[1643986229984,0.04999999,37930.0,37928.0,0.131862]
[1643986230386,0.39685099,37930.0,37927.0,0.02138]
[1643986230583,0.23313509,37929.0,37927.0,0.02138]
[1643986230787,0.39685099,37928.0,37927.0,0.02138]
[1643986231384,0.04999999,37928.0,37927.0,0.02138]
[1643986231783,0.04999999,37928.0,37927.0,0.07138]
[1643986231986,0.04999999,37928.0,37927.0,0.02138]
[1643986232230,0.39685099,37928.0,37927.0,0.02138]
[1643986232629,0.59571663,37928.0,37927.0,0.02138]
[1643986233032,0.69529017,37928.0,37927.0,0.02138]
[1643986233232,0.69813561,37928.0,37927.0,0.02138]
[1643986233631,0.49685099,37928.0,37927.0,0.02138]
[1643986234233,0.49685099,37928.0,37922.0,0.08730327]
[1643986234436,0.49685099,37928.0,37922.0,0.02135627]
[1643986234437,0.04999999,37923.0,37922.0,0.02135627]
[1643986234637,0.04999999,37923.0,37914.0,0.131908]
[1643986234638,1.05,37922.0,37914.0,0.131908]
[1643986234841,1.05,37922.0,37912.0,0.00024566]
[1643986234842,0.39685099,37915.0,37912.0,0.00024566]
[1643986235036,0.04999999,37913.0,37905.0,0.50024566]
[1643986235238,1.15,37910.0,37904.0,0.03901798]
[1643986235447,1.15,37910.0,37901.0,0.01]
[1643986235448,0.346851,37908.0,37905.0,0.00024633]
[1643986235635,0.346851,37905.0,37902.0,0.00024633]
[1643986235894,0.346851,37905.0,37901.0,0.01]
[1643986235895,0.346851,37902.0,37901.0,0.01]
[1643986236084,0.395351,37902.0,37901.0,0.01]
[1643986236287,0.83085401,37902.0,37901.0,0.01]
[1643986236686,1.00322637,37902.0,37901.0,0.01]
[1643986236891,1.60322637,37902.0,37901.0,0.01]
[1643986237087,0.0050109,37900.0,37896.0,0.00024633]
[1643986237291,0.0050109,37900.0,37891.0,0.04497888]
[1643986237292,0.04999999,37897.0,37892.0,0.00024633]
[1643986237490,0.395351,37899.0,37886.0,0.05]
[1643986237491,0.04999999,37893.0,37886.0,0.05]
[1643986237690,0.29795672,37886.0,37881.0,0.01]
[1643986237890,0.91646485,37882.0,37881.0,0.01]
[1643986238093,0.9154855,37882.0,37881.0,0.01]
[1643986238290,0.65462898,37882.0,37881.0,0.01]
[1643986238689,0.70312898,37882.0,37881.0,0.01]
[1643986238890,1.55312898,37882.0,37881.0,0.01]
[1643986239491,1.73012086,37882.0,37881.0,0.01]
[1643986239729,1.8042564,37882.0,37881.0,0.01]
[1643986240131,0.01845609,37880.0,37874.0,0.03964544]
[1643986240332,0.04999999,37875.0,37871.0,0.01]
[1643986240529,0.0485,37874.0,37871.0,0.01]
[1643986240736,0.04999999,37874.0,37871.0,0.01]
[1643986240933,0.04999999,37872.0,37871.0,0.01]
[1643986241130,0.3862608,37872.0,37871.0,0.01]
[1643986241331,0.4862608,37872.0,37871.0,0.01]
[1643986241730,0.67330871,37872.0,37871.0,0.01]
[1643986241929,0.35,37871.0,37865.0,0.8597343]
[1643986242131,0.35,37871.0,37861.0,0.04578693]
[1643986242132,0.12985896,37866.0,37861.0,0.01]
[1643986242335,0.12985896,37866.0,37851.0,0.43]
[1643986242336,0.04999999,37862.0,37851.0,0.43]
[1643986242532,0.04999999,37854.0,37853.0,0.10147]
[1643986242727,0.07985897,37866.0,37853.0,0.10147]
[1643986242728,0.0485,37861.0,37853.0,0.10147]
[1643986242929,0.04999999,37858.0,37855.0,0.04382326]
[1643986243128,0.24725491,37855.0,37853.0,0.11814339]
[1643986243390,0.15007407,37854.0,37851.0,0.01]
[1643986243583,0.10007408,37854.0,37851.0,0.01]
[1643986243782,0.04999999,37852.0,37851.0,0.01]
[1643986243983,0.21527255,37852.0,37851.0,0.01]
[1643986244186,0.27614266,37849.0,37848.0,0.54887344]
[1643986244383,0.94662405,37849.0,37848.0,0.54887344]
[1643986244583,0.32363039,37849.0,37848.0,0.54887344]
[1643986244788,0.04999999,37849.0,37848.0,0.54887344]
[1643986244987,0.04999999,37850.0,37848.0,0.54887344]
[1643986245888,0.04999999,37850.0,37849.0,0.03353555]
[1643986246084,0.0485,37857.0,37848.0,0.54887344]
[1643986246288,0.0485,37857.0,37851.0,0.03416272]
[1643986246289,0.09849999,37857.0,37851.0,0.03416272]
[1643986246485,0.26194843,37852.0,37848.0,0.54887344]
[1643986246687,0.6,37851.0,37849.0,0.03737942]
[1643986246890,0.04999999,37850.0,37848.0,0.346851]
[1643986247127,0.07764199,37856.0,37848.0,0.346851]
[1643986247128,0.18104947,37856.0,37848.0,0.346851]
[1643986247331,0.04999999,37858.0,37850.0,0.04267152]
[1643986247532,0.02239419,37857.0,37856.0,0.0276058]
[1643986247730,0.64324555,37857.0,37851.0,0.03486377]
[1643986247930,0.46937919,37857.0,37848.0,0.3744568]
[1643986248131,0.02239419,37857.0,37854.0,0.0276058]
[1643986248533,0.04999999,37858.0,37853.0,0.13915759]
[1643986248731,0.01977657,37861.0,37855.0,0.04427566]
[1643986249529,0.08260811,37862.0,37855.0,0.04427566]
[1643986249730,0.25980687,37863.0,37855.0,0.04427566]
[1643986250331,0.02037286,37864.0,37855.0,0.04427566]
[1643986250730,0.02037286,37864.0,37862.0,0.08307247]
[1643986250981,0.08595013,37873.0,37856.0,0.00024661]
[1643986250982,0.02000589,37868.0,37856.0,0.00024661]
[1643986251184,0.02000589,37868.0,37860.0,0.00241721]
[1643986251185,0.04758278,37865.0,37860.0,0.00241721]
[1643986251382,0.346985,37864.0,37860.0,0.00241721]
[1643986251581,0.346985,37864.0,37862.0,0.00241721]
[1643986251881,0.346985,37864.0,37862.0,0.04726082]
[1643986252081,0.346985,37864.0,37862.0,0.00241721]
[1643986252082,1.11695087,37863.0,37862.0,0.00241721]
[1643986252382,0.76151865,37863.0,37862.0,0.00241721]
[1643986252580,0.71393587,37863.0,37860.0,0.00241721]
[1643986252782,0.04758278,37861.0,37860.0,0.00241721]
[1643986252980,0.39456778,37861.0,37860.0,0.00241721]
[1643986253183,0.49836983,37861.0,37860.0,0.00241721]
[1643986253582,0.94836983,37861.0,37860.0,0.00241721]
[1643986253787,0.49836983,37861.0,37856.0,0.00024661]
[1643986253981,0.49836983,37861.0,37860.0,0.00241721]
[1643986253982,0.45078705,37861.0,37860.0,0.00241721]
[1643986254183,0.09270478,37861.0,37860.0,0.00241721]
[1643986255139,0.04655836,37859.0,37856.0,0.03905879]
[1643986255541,0.2913208,37865.0,37855.0,0.04768791]
[1643986255742,0.04999999,37863.0,37855.0,0.0474413]
[1643986255942,0.20247371,37864.0,37855.0,0.04768791]
[1643986256145,0.27099786,37864.0,37855.0,0.04768791]
[1643986256346,0.04999999,37863.0,37855.0,0.04768791]
[1643986256543,0.2913208,37865.0,37860.0,0.09954865]
[1643986256746,0.1,37864.0,37856.0,0.00024661]
[1643986256944,0.04999999,37863.0,37855.0,0.00024661]
[1643986257146,0.04999999,37856.0,37851.0,0.00024661]
[1643986257344,0.5488433,37862.0,37848.0,0.346851]
[1643986257345,0.21768304,37855.0,37852.0,0.00024661]
[1643986257544,0.27440035,37861.0,37848.0,0.346851]
[1643986257744,0.08204553,37855.0,37848.0,0.49574815]
[1643986257942,0.1,37861.0,37848.0,0.3970976]
[1643986258145,0.1,37861.0,37855.0,0.04999999]
[1643986258582,0.1,37861.0,37851.0,0.04999999]
[1643986258782,0.3631807,37866.0,37854.0,0.04999999]
[1643986258783,0.4631807,37866.0,37854.0,0.04999999]
[1643986258989,0.4631807,37866.0,37848.0,0.55225545]
[1643986258990,0.1956214,37858.0,37853.0,0.08293869]
[1643986259183,0.1956214,37858.0,37854.0,0.04999999]
[1643986259383,0.32722178,37863.0,37854.0,0.04999999]
[1643986259584,0.346997,37862.0,37854.0,0.04999999]
[1643986259784,0.31181235,37860.0,37854.0,0.04999999]
[1643986259983,0.346997,37859.0,37854.0,0.04999999]
[1643986260185,0.02553787,37870.0,37848.0,0.65343247]
[1643986260186,0.346997,37858.0,37848.0,0.65343247]
[1643986260386,0.08402254,37855.0,37849.0,0.04999999]
[1643986260585,0.01932338,37869.0,37848.0,1.23750377]
[1643986260785,0.01932338,37869.0,37852.0,0.04999999]
[1643986260984,0.19108152,37862.0,37854.0,0.04999999]
[1643986261385,0.02063547,37866.0,37854.0,0.04999999]
[1643986261589,0.02063547,37866.0,37849.0,0.00024666]
[1643986261590,0.02063547,37866.0,37865.0,0.3119171]
[1643986261788,0.02063547,37866.0,37865.0,0.41191709]
[1643986261987,0.02063547,37866.0,37865.0,0.71473709]
[1643986262234,0.02063547,37866.0,37865.0,0.80069238]
[1643986262432,0.02063547,37866.0,37865.0,1.16747671]
[1643986262634,0.20689684,37880.0,37865.0,1.26950894]
[1643986262839,0.002,37881.0,37879.0,0.04999999]
[1643986263034,0.002,37881.0,37878.0,0.751064]
[1643986263234,0.002,37881.0,37880.0,0.04999999]
[1643986263636,0.002,37881.0,37880.0,0.35265699]
[1643986263839,0.001,37883.0,37880.0,0.35265699]
[1643986263840,0.001,37883.0,37880.0,1.55840983]
[1643986264036,0.001,37883.0,37882.0,0.39999999]
[1643986264241,0.001,37883.0,37882.0,0.85113799]
[1643986264436,0.001,37883.0,37882.0,1.80113799]
[1643986264636,0.001,37883.0,37882.0,0.85113799]
[1643986264835,0.001,37883.0,37882.0,1.10815334]
[1643986265036,0.001,37883.0,37882.0,0.85113799]
[1643986265539,0.001,37883.0,37882.0,0.14849999]
[1643986265980,0.001,37883.0,37882.0,0.14349999]
[1643986266183,0.001,37883.0,37882.0,0.44613699]
[1643986266379,0.001,37883.0,37882.0,0.49613699]
[1643986266582,0.001,37883.0,37882.0,0.49606046]
[1643986267285,0.001,37883.0,37882.0,0.14342346]
[1643986267483,0.14962831,37883.0,37882.0,0.0485]
[1643986267681,0.69422394,37883.0,37882.0,0.0485]
[1643986267885,0.10653416,37879.0,37878.0,0.439729]
[1643986269734,0.10653416,37879.0,37878.0,0.722676]
[1643986270131,0.02666059,37879.0,37878.0,0.822676]
[1643986270542,0.0021,37888.0,37880.0,1.9]
[1643986270836,0.0021,37888.0,37887.0,0.09999999]
[1643986271032,0.0021,37888.0,37887.0,0.40258899]
[1643986272836,0.0021,37888.0,37887.0,0.05]
[1643986273034,0.0021,37888.0,37886.0,0.05]
[1643986273235,0.0021,37888.0,37883.0,0.02117562]
[1643986273693,0.19883076,37884.0,37883.0,0.02117562]
[1643986273886,0.0021,37888.0,37883.0,0.02117562]
[1643986274691,0.346997,37887.0,37883.0,0.02117562]
[1643986274890,0.346997,37885.0,37883.0,0.04142948]
[1643986275089,0.346997,37885.0,37883.0,0.02025386]
[1643986275288,0.446997,37885.0,37883.0,0.02025386]
[1643986275688,0.58433814,37884.0,37883.0,0.02025386]
[1643986275890,1.03133514,37884.0,37883.0,0.02025386]
[1643986276993,1.03133514,37884.0,37879.0,0.00024649]
[1643986277233,1.03133514,37884.0,37878.0,0.42]
[1643986277234,0.68433814,37884.0,37878.0,0.47]
[1643986277433,0.2621639,37884.0,37878.0,0.47]
[1643986277637,0.0021,37888.0,37881.0,0.2799672]
[1643986277839,0.0021,37888.0,37885.0,0.04999999]
[1643986278036,0.0021,37888.0,37881.0,0.2799672]
[1643986278335,0.0021,37888.0,37886.0,0.302599]
[1643986278533,0.0021,37888.0,37887.0,0.75815652]
[1643986278738,0.001,37893.0,37888.0,1.8]
[1643986278939,0.0011,37895.0,37888.0,1.8]
[1643986278940,0.0011,37895.0,37892.0,1.1]
[1643986279137,0.0011,37895.0,37894.0,0.04999999]
[1643986279341,0.0022,37902.0,37895.0,0.04706923]
[1643986279539,0.0022,37902.0,37898.0,0.6069347]
[1643986279736,0.0022,37902.0,37898.0,0.6569347]
[1643986280534,0.0022,37902.0,37898.0,0.70079494]
[1643986280733,0.0022,37902.0,37898.0,0.6569347]
[1643986281008,0.0022,37902.0,37898.0,0.43387257]
[1643986281207,0.0022,37902.0,37898.0,0.13139057]
[1643986281807,0.0022,37902.0,37898.0,0.05]
[1643986282008,0.3542079,37900.0,37898.0,0.05]
[1643986282210,0.3542079,37900.0,37895.0,0.01924339]
[1643986282211,0.34691,37898.0,37895.0,0.01924339]
[1643986282407,0.34691,37897.0,37895.0,0.01924339]
[1643986282608,0.1072109,37900.0,37895.0,0.01924339]
[1643986282810,0.09410513,37897.0,37895.0,0.01924339]
[1643986283016,0.09410513,37897.0,37886.0,0.05]
[1643986283017,0.45,37895.0,37886.0,0.05]
[1643986283218,0.27401173,37894.0,37882.0,0.04709711]
[1643986283413,0.34691,37893.0,37882.0,0.04709711]
[1643986283610,0.34691,37891.0,37882.0,0.04709711]
[1643986283809,0.34691,37891.0,37879.0,0.00024649]
[1643986283810,0.34691,37889.0,37879.0,0.00024649]
[1643986284013,0.20930305,37890.0,37885.0,0.09956255]
[1643986284213,0.16963942,37888.0,37885.0,0.09956255]
[1643986284411,0.25012782,37891.0,37883.0,0.28060812]
[1643986284636,0.19840761,37890.0,37882.0,0.03446915]
[1643986284840,0.19614195,37890.0,37883.0,0.04294217]
[1643986285037,0.49275822,37890.0,37874.0,0.04999999]
[1643986285239,0.49275822,37890.0,37874.0,0.04114838]
[1643986285240,0.05,37888.0,37874.0,0.04114838]
[1643986285439,0.19978211,37882.0,37872.0,0.04999999]
[1643986285639,0.09492223,37886.0,37879.0,0.08653514]
[1643986285840,0.34691,37885.0,37879.0,0.08653514]
[1643986286039,0.1,37887.0,37879.0,0.08653514]
[1643986286238,0.09968229,37885.0,37879.0,0.13678163]
[1643986286442,0.20744922,37889.0,37880.0,0.04565663]
[1643986286639,0.16056246,37886.0,37880.0,0.04565663]
[1643986286840,0.16056246,37886.0,37879.0,0.05]
[1643986287239,0.16056246,37886.0,37878.0,0.00024649]
[1643986287444,0.2212692,37889.0,37877.0,0.27277711]
[1643986287639,0.2212692,37889.0,37877.0,0.2730236]
[1643986287840,0.09592606,37879.0,37876.0,0.00024649]
[1643986288039,0.24110969,37887.0,37873.0,0.04885349]
[1643986288241,0.20369576,37892.0,37873.0,0.09909997]
[1643986288485,0.2402,37893.0,37873.0,0.09885348]
[1643986288486,0.16943267,37883.0,37873.0,0.09885348]
[1643986288687,0.16943267,37883.0,37873.0,0.04999999]
[1643986289085,0.16943267,37883.0,37877.0,0.03454025]
[1643986289286,0.30369576,37890.0,37877.0,0.04807149]
[1643986289589,0.34691,37889.0,37881.0,0.04999999]
[1643986289784,0.34691,37889.0,37884.0,0.04999999]
[1643986289989,0.34691,37889.0,37885.0,0.04080892]
[1643986290287,0.3050332,37885.0,37877.0,0.09999999]
[1643986290486,0.18620705,37882.0,37877.0,0.05]
[1643986290689,0.18620705,37882.0,37877.0,0.03807814]
[1643986290887,0.18620705,37882.0,37878.0,0.05]
[1643986291087,0.18620705,37882.0,37878.0,0.08567548]
[1643986291287,0.1,37885.0,37878.0,0.03567548]
[1643986291490,0.08173218,37885.0,37875.0,0.47]
[1643986291693,0.08173218,37885.0,37878.0,0.04176658]
[1643986291991,0.08173218,37885.0,37875.0,0.47]
[1643986292232,0.1,37888.0,37877.0,0.03839953]
[1643986292430,0.26336623,37888.0,37880.0,0.27679272]
[1643986292635,0.26336623,37888.0,37882.0,0.03602937]
[1643986292932,0.16336623,37888.0,37882.0,0.03602937]
[1643986293131,0.16336623,37888.0,37883.0,0.04541367]
[1643986293333,0.0973644,37886.0,37880.0,0.05]
[1643986293536,0.14533125,37881.0,37880.0,0.05]
[1643986293731,0.2049504,37885.0,37877.0,0.09477704]
[1643986293932,0.2049504,37885.0,37878.0,0.04574394]
[1643986294132,0.2049504,37885.0,37879.0,0.04537743]
[1643986294333,0.1973644,37886.0,37878.0,0.09495775]
[1643986294534,0.1,37886.0,37879.0,0.04162539]